bitfinex/quotes_ETHUSD_20240717
["timestamp","ask_amount","ask_price","bid_price","bid_amount"]
[1721241297731,0.64905421,3419.8,3419.5,2.92433]
[1721241298195,0.035569,3419.8,3419.5,2.92433]
[1721241300258,3.07385421,3419.8,3419.4,2.92447]
[1721241300866,3.07385421,3419.8,3419.2,2.92458]
[1721241301111,3.07385421,3419.8,3419.3,3.0]
[1721241301276,3.07385421,3419.8,3418.7,5.85009]
[1721241301277,0.61348521,3419.5,3418.7,5.85009]
[1721241301418,0.61348521,3419.5,3418.8,2.92497]
[1721241301747,0.03441251,3419.4,3419.0,1.048]
[1721241301954,0.03441251,3419.4,3419.2,1.048]
[1721241302155,0.03441251,3419.4,3419.3,2.92457]
[1721241302528,0.61348521,3419.7,3419.3,2.92457]
[1721241302827,0.03439708,3419.4,3419.3,2.92457]
[1721241303031,0.61348521,3419.7,3419.3,2.92457]
[1721241303262,0.03439708,3419.4,3419.3,2.92457]
[1721241303659,0.03439708,3419.4,3419.3,3.857043]
[1721241303660,0.03440001,3419.4,3419.3,3.857043]
[1721241303838,0.03440001,3419.4,3419.3,4.407043]
[1721241304161,0.61348521,3419.9,3419.5,2.92438]
[1721241304381,0.61348521,3419.8,3419.5,3.440269]
[1721241305071,0.61348521,3419.9,3419.5,3.440269]
[1721241305568,0.61348521,3419.8,3419.5,3.440269]
[1721241306067,0.61348521,3419.9,3419.5,3.440269]
[1721241306223,0.61348521,3419.8,3419.5,3.440269]
[1721241306622,0.61348521,3420.0,3419.6,2.4673]
[1721241306823,0.61348521,3420.2,3419.9,1.048]
[1721241307134,3.19142781,3420.4,3419.9,1.048]
[1721241307135,0.61348521,3420.3,3419.9,1.048]
[1721241307728,0.03326979,3420.2,3419.9,1.048]
[1721241308287,0.03326979,3420.2,3419.9,3.972]
[1721241308434,0.03326979,3420.2,3420.1,3.97189]
[1721241308874,0.61348521,3420.8,3420.4,2.92355]
[1721241309101,0.61348521,3421.0,3420.6,2.92346]
[1721241309232,0.0333395,3420.7,3420.2,2.92377]
[1721241310470,0.0333395,3420.7,3420.1,3.0]
[1721241310675,0.0333395,3420.7,3420.0,3.97193]
[1721241310676,0.64682471,3420.7,3420.0,3.97196]
[1721241310868,0.0333395,3420.7,3420.0,3.97196]
[1721241311031,0.64682471,3420.7,3420.0,3.97196]
[1721241311569,0.61348521,3420.6,3420.0,3.97196]
[1721241311771,0.64682471,3420.7,3420.0,1.048]
[1721241311979,0.03341051,3420.5,3420.0,1.048]
[1721241312276,0.64690131,3420.6,3419.9,5.92405]
[1721241312475,0.64690131,3420.6,3419.9,3.0]
[1721241312476,0.03341051,3420.5,3419.9,3.0]
[1721241313453,0.03341051,3420.5,3419.9,5.924]
[1721241314442,0.03341051,3420.5,3420.0,2.92396]
[1721241314643,0.61348521,3420.7,3420.0,2.92396]
[1721241314944,0.0330498,3420.6,3420.1,2.92388]
[1721241315288,3.23262781,3420.8,3420.1,2.92388]
[1721241315289,2.3124,3420.8,3420.1,2.92388]
[1721241315640,0.03302052,3420.5,3420.2,2.92375]
[1721241315841,0.03303169,3420.7,3420.2,2.92375]
[1721241316386,0.03303169,3420.7,3420.3,2.9237]
[1721241316571,2.3124,3420.8,3420.3,2.9237]
[1721241316742,0.03302611,3420.6,3420.3,2.9237]
[1721241316943,2.3124,3420.8,3420.3,2.9237]
[1721241317157,0.03302052,3420.5,3420.3,2.9237]
[1721241317372,2.3124,3420.8,3420.3,2.9237]
[1721241317583,0.03301494,3420.4,3420.3,2.9237]
[1721241317796,2.3124,3420.8,3420.3,2.9237]
[1721241317947,0.61348521,3421.1,3420.5,2.92349]
[1721241318462,0.61348521,3421.3,3420.6,2.92346]
[1721241319873,0.61348521,3421.3,3420.7,2.92336]
[1721241320072,2.3119,3421.4,3420.7,2.92336]
[1721241320073,2.92538521,3421.4,3420.7,2.92336]
[1721241320857,2.92538521,3421.4,3420.5,2.92348]
[1721241321102,2.92538521,3421.4,3420.4,2.92355]
[1721241321283,2.92538521,3421.4,3420.5,2.92349]
[1721241321776,2.92538521,3421.4,3420.6,2.92346]
[1721241322304,2.92538521,3421.4,3420.4,2.92355]
[1721241322590,0.03315709,3421.3,3420.5,2.92353]
[1721241322886,0.6466423,3421.3,3420.5,2.92353]
[1721241323086,0.6466423,3421.3,3420.4,2.92355]
[1721241323297,0.6466423,3421.3,3420.1,2.3737]
[1721241323298,0.61348521,3421.2,3420.3,2.92369]
[1721241323598,0.03314211,3421.1,3420.4,3.0]
[1721241325161,2.3738,3421.0,3420.4,3.0]
[1721241325687,0.03312522,3420.9,3420.4,3.0]
[1721241326208,0.03312522,3420.9,3420.3,3.0]
[1721241327055,5.3855,3420.8,3419.6,2.92431]
[1721241327367,2.95298521,3420.5,3419.4,3.22960049]
[1721241327582,0.61348521,3420.4,3419.4,3.22960049]
[1721241327899,0.64659415,3420.4,3419.4,3.22960049]
[1721241328095,0.61348521,3420.3,3419.4,2.92448]
[1721241328481,0.61348521,3420.3,3419.5,3.0]
[1721241328482,0.03309263,3420.2,3419.5,3.0]
[1721241328812,0.03309263,3420.2,3419.5,5.92437]
[1721241328995,0.61348521,3420.4,3419.5,5.92437]
[1721241329172,0.03308618,3420.1,3419.5,5.92437]
[1721241329373,0.61348521,3420.3,3419.5,5.92437]
[1721241329570,0.0330806,3420.0,3419.5,5.92437]
[1721241329765,0.61348521,3420.3,3419.6,2.92431]
[1721241329992,0.03308023,3419.9,3419.6,2.92431]
[1721241330211,0.61348521,3420.4,3419.6,2.92431]
[1721241330411,0.03306996,3419.8,3419.6,2.92431]
[1721241330606,0.61348521,3420.4,3419.6,2.92431]
[1721241330917,0.03301608,3419.7,3419.6,2.92431]
[1721241331123,2.95298521,3420.5,3419.8,2.92412]
[1721241331415,2.3395,3420.5,3419.8,2.92412]
[1721241331626,0.03305223,3420.4,3419.8,2.92412]
[1721241331919,0.13989611,3420.4,3419.8,2.92412]
[1721241332672,0.13989611,3420.4,3419.8,5.8482]
[1721241332870,0.13989611,3420.4,3419.9,2.92404]
[1721241333290,0.13989611,3420.4,3419.8,3.8973873]
[1721241333291,0.13989611,3420.4,3420.0,2.92394]
[1721241333636,0.61348521,3420.7,3419.8,0.9733073]
[1721241333637,0.13937991,3420.3,3420.2,2.92378]
[1721241333910,0.13937991,3420.3,3420.2,8.84758]
[1721241334116,0.61348521,3421.1,3420.5,2.92354]
[1721241335775,0.61348521,3421.1,3420.5,5.84708]
[1721241335970,2.86408521,3421.2,3420.6,2.92345]
[1721241337180,2.86408521,3421.2,3420.6,5.84685]
[1721241337727,0.13942376,3421.1,3420.6,2.9234]
[1721241340310,0.13942376,3421.1,3420.7,2.92335]
[1721241342018,0.13942376,3421.1,3420.5,5.84701]
[1721241342610,0.13942376,3421.1,3420.5,2.92347]
[1721241343242,0.75290897,3421.1,3420.6,2.92346]
[1721241343609,0.13942376,3421.1,3420.6,2.92346]
[1721241344331,0.75290897,3421.1,3420.5,2.92347]
[1721241345330,0.75290897,3421.1,3420.5,5.84696]
[1721241345941,0.13942376,3421.1,3420.5,2.92347]
[1721241346311,0.13942376,3421.1,3420.5,3.97047]
[1721241346312,0.75290897,3421.1,3420.5,3.97047]
[1721241347050,0.75290897,3421.1,3420.5,3.97054]
[1721241348449,0.75290897,3421.1,3420.5,6.89402]
[1721241348956,0.75290897,3421.1,3420.5,3.97048]
[1721241349255,0.75290897,3421.1,3420.7,1.047]
[1721241349453,0.61348521,3421.0,3420.7,1.047]
[1721241349611,0.75290897,3421.1,3420.7,1.047]
[1721241349813,0.13926107,3420.9,3420.7,1.047]
[1721241350051,0.61348521,3421.1,3420.7,1.047]
[1721241350258,0.13925861,3420.8,3420.7,1.047]
[1721241350730,0.61348521,3421.1,3420.7,1.047]
[1721241350927,0.13936684,3421.0,3420.7,1.047]
[1721241351514,0.75285205,3421.0,3420.7,1.047]
[1721241353115,0.61348521,3420.9,3420.7,1.047]
[1721241353341,0.75285205,3421.0,3420.7,1.047]
[1721241353540,0.13936192,3420.8,3420.7,1.047]
[1721241353855,0.61348521,3421.1,3420.7,1.047]
[1721241354063,0.13936192,3420.8,3420.7,1.047]
[1721241354267,0.61348521,3421.1,3420.7,1.047]
[1721241354417,0.13936192,3420.8,3420.7,1.047]
[1721241354625,0.61348521,3420.9,3420.7,1.047]
[1721241354826,0.13936192,3420.8,3420.7,1.047]
[1721241358467,0.13936192,3420.8,3420.7,3.97037]
[1721241359876,0.61348521,3421.0,3420.7,3.97037]
[1721241360084,0.13937374,3420.8,3420.7,3.97037]
[1721241360231,0.61348521,3421.1,3420.7,3.97037]
[1721241360576,0.13937816,3420.8,3420.3,2.92368]
[1721241360735,0.61348521,3420.7,3420.4,2.92362]
[1721241361068,0.13938062,3420.6,3420.4,2.92362]
[1721241361776,0.61348521,3420.7,3420.4,2.92362]
[1721241362278,0.13938062,3420.6,3420.4,2.92362]
[1721241362658,0.61348521,3420.8,3420.4,2.92362]
[1721241362842,0.61348521,3420.8,3420.5,1.047]
[1721241363167,0.13936242,3420.7,3420.5,6.26694]
[1721241363347,0.61348521,3420.9,3420.5,6.26694]
[1721241363547,0.13935011,3420.8,3420.7,1.047]
[1721241364068,0.61348521,3421.0,3420.7,3.97029]
[1721241364388,0.61348521,3421.1,3421.0,2.92312]
[1721241364680,0.61348521,3421.3,3421.0,3.97007]
[1721241364831,1.22697042,3421.6,3421.3,2.92286]
[1721241364832,0.61348521,3421.5,3421.3,2.92286]
[1721241365036,0.92022781,3421.6,3421.4,1.047]
[1721241365037,0.61348521,3421.6,3421.4,1.047]
[1721241365482,0.61348521,3421.7,3421.4,1.047]
[1721241365775,0.92022781,3421.8,3421.6,1.047]
[1721241366477,0.61261228,3421.7,3421.6,1.047]
[1721241366693,0.61261228,3421.8,3421.6,1.047]
[1721241367179,0.61261228,3421.8,3421.6,3.96959]
[1721241367385,0.61261228,3421.9,3421.6,6.89212]
[1721241367589,0.13956589,3421.7,3421.6,3.96953]
[1721241367750,0.61261228,3421.9,3421.7,2.92244]
[1721241367948,0.13956835,3421.8,3421.7,2.92244]
[1721241368148,0.61261228,3422.0,3421.7,2.92244]
[1721241368389,0.61261228,3422.1,3421.7,2.92244]
[1721241368687,0.13957081,3421.9,3421.7,2.92244]
[1721241368987,0.13956835,3421.8,3421.7,2.92244]
[1721241369151,0.61261228,3422.1,3421.7,2.92244]
[1721241369483,0.61261228,3422.1,3421.6,3.96953]
[1721241369484,0.61261228,3422.1,3421.8,3.96943]
[1721241370353,0.61261228,3422.2,3421.8,3.96943]
[1721241371363,3.35292781,3422.4,3421.8,3.96943]
[1721241371364,0.61261228,3422.3,3421.8,3.96943]
[1721241372090,0.61261228,3422.2,3421.8,3.96943]
[1721241372451,0.61261228,3422.2,3421.8,2.92243]
[1721241372958,0.61261228,3422.2,3421.8,3.96943]
[1721241375795,3.03651228,3421.9,3421.3,2.9228]
[1721241376516,3.03651228,3421.9,3420.7,3.842338]
[1721241376517,2.4239,3421.7,3420.0,2.63914159]
[1721241376823,1.047,3421.1,3420.5,2.92349]
[1721241376962,0.61261228,3421.1,3420.5,2.92349]
[1721241377158,0.13043011,3421.0,3420.5,3.97049]
[1721241377590,0.61261228,3421.2,3420.5,3.97049]
[1721241377893,0.13042764,3420.9,3420.6,2.92345]
[1721241378099,3.03651228,3421.3,3420.6,2.92345]
[1721241378460,0.13038486,3421.2,3420.6,2.92345]
[1721241378997,0.74299714,3421.2,3420.6,2.92345]
[1721241379205,1.047,3420.7,3419.9,3.22914242]
[1721241379497,1.047,3420.7,3419.9,2.92399]
[1721241379498,0.61261228,3420.6,3419.9,2.92399]
[1721241379671,0.74298276,3420.6,3419.9,2.92399]
[1721241379879,0.61261228,3420.5,3419.9,2.92399]
[1721241380270,0.13037515,3420.4,3419.9,2.92399]
[1721241380473,0.13037515,3420.4,3420.0,2.92397]
[1721241380685,0.74298743,3420.4,3420.0,2.92397]
[1721241380893,0.13037515,3420.4,3420.0,2.92397]
[1721241381472,0.13037515,3420.4,3419.7,3.97122]
[1721241381473,0.13037515,3420.4,3419.8,2.92409]
[1721241381674,0.74298743,3420.4,3419.8,2.92409]
[1721241381981,0.74298743,3420.4,3419.9,2.92405]
[1721241382200,0.13037515,3420.4,3419.9,2.92405]
[1721241383827,0.61261228,3420.6,3419.9,2.92405]
[1721241384009,0.13017708,3420.3,3419.9,2.92405]
[1721241384168,0.61261228,3420.6,3419.9,2.92405]
[1721241384371,3.34412781,3420.8,3419.9,2.92405]
[1721241384372,0.1301732,3420.2,3419.9,2.92405]
[1721241384567,0.61261228,3420.5,3419.9,2.92405]
[1721241384806,0.13017073,3420.1,3420.0,2.92397]
[1721241385074,0.61261228,3420.5,3420.0,2.92397]
[1721241385416,0.13017954,3420.4,3419.9,2.92405]
[1721241385618,0.61261228,3420.6,3419.9,2.92405]
[1721241385783,0.13018095,3420.3,3419.5,5.92437]
[1721241385987,0.13018095,3420.3,3419.5,3.0]
[1721241385988,2.389,3420.2,3419.5,3.0]
[1721241386189,2.51915244,3420.2,3419.4,3.0]
[1721241386672,3.13176472,3420.2,3419.4,3.0]
[1721241387424,2.51915244,3420.2,3419.4,3.0]
[1721241388128,2.51915244,3420.2,3419.4,3.884901]
[1721241388430,2.51915244,3420.2,3419.7,2.92422]
[1721241391787,2.51915244,3420.2,3419.7,5.84839]
[1721241391992,2.51915244,3420.2,3419.7,2.92417]
[1721241392212,2.389,3420.2,3419.7,2.92417]
[1721241392936,0.12996066,3420.1,3419.7,2.92417]
[1721241393110,0.12996066,3420.1,3419.7,5.84832]
[1721241393307,0.12996066,3420.1,3419.8,2.92414]
[1721241393726,2.3886,3420.5,3419.8,2.92414]
[1721241393897,0.1299674,3420.0,3419.8,2.92414]
[1721241394098,2.3886,3420.5,3419.8,2.92414]
[1721241394298,0.12996642,3419.9,3419.8,2.92414]
[1721241394501,2.3886,3420.5,3419.8,2.92414]
[1721241394703,0.12996642,3419.9,3419.8,2.92414]
[1721241395016,0.12998562,3419.9,3419.8,3.455954]
[1721241395217,2.3886,3420.5,3419.8,2.92407]
[1721241395420,2.3886,3420.5,3419.9,2.92405]
[1721241395907,2.3886,3420.5,3419.9,5.84806]
[1721241397442,2.3886,3420.5,3420.0,2.92396]
[1721241397629,0.13000383,3420.4,3420.0,2.92396]
[1721241399121,0.13000383,3420.4,3419.9,2.92405]
[1721241399518,0.13000383,3420.4,3419.9,5.84804]
[1721241399920,0.13000383,3420.4,3419.9,2.92399]
[1721241400231,0.13000383,3420.4,3419.8,2.92414]
[1721241400406,0.13000383,3420.4,3419.8,5.84823]
[1721241400745,0.13000383,3420.4,3419.9,2.92404]
[1721241401940,0.13000383,3420.4,3419.7,2.92423]
[1721241402143,0.13000383,3420.4,3419.7,5.84839]
[1721241402340,0.13000383,3420.4,3419.8,2.92411]
[1721241404410,0.13000383,3420.4,3419.8,3.97111]
[1721241407365,0.13000383,3420.4,3420.0,1.047]
[1721241407658,0.13000383,3420.4,3419.2,2.2617]
[1721241407659,0.13000383,3420.4,3420.3,1.047]
[1721241407811,0.61076035,3420.8,3420.7,2.92337]
[1721241408006,0.61076035,3420.8,3420.7,3.97037]
[1721241408214,0.61076035,3420.8,3420.7,4.659748]
[1721241410280,0.61076035,3420.8,3420.7,3.612748]
[1721241411675,2.4822,3421.4,3420.8,2.92325]
[1721241412734,0.1259181,3421.3,3420.9,2.92319]
[1721241416232,0.1259181,3421.3,3421.0,2.92311]
[1721241416471,2.4983,3421.7,3421.0,2.92311]
[1721241416684,0.12591015,3421.2,3421.0,2.92311]
[1721241416882,2.4983,3421.7,3421.0,2.92311]
[1721241417375,2.4983,3421.7,3420.9,2.92319]
[1721241417376,2.4983,3421.7,3421.1,2.92303]
[1721241417552,0.12591999,3421.6,3421.1,2.92303]
[1721241417776,0.12591999,3421.6,3421.2,2.92292]
[1721241418355,0.12591999,3421.6,3421.5,2.92269]
[1721241418558,3.05326035,3422.2,3421.5,5.84538]
[1721241418878,0.12597601,3422.1,3421.6,2.92259]
[1721241420353,0.12597601,3422.1,3421.7,2.9225]
[1721241420573,0.61076035,3422.4,3421.8,2.92237]
[1721241420758,0.12598345,3422.3,3421.8,2.92237]
[1721241422164,0.61076035,3422.3,3421.8,2.92237]
[1721241422416,0.12597846,3422.2,3421.8,2.92237]
[1721241422784,0.61076035,3422.3,3422.0,2.92225]
[1721241422987,0.12597601,3422.1,3422.0,2.92225]
[1721241423276,0.12605897,3422.1,3422.0,2.92225]
[1721241423475,2.86836035,3422.5,3422.0,5.84444]
[1721241423691,0.61076035,3422.7,3422.1,2.92216]
[1721241424593,3.38224052,3422.8,3421.9,2.92228]
[1721241424594,3.07686035,3422.8,3421.9,2.92228]
[1721241424779,3.07686035,3422.8,3422.0,2.92226]
[1721241425758,3.07686035,3422.8,3422.0,2.9222]
[1721241425967,2.4661,3422.8,3422.0,2.9222]
[1721241426582,2.4661,3422.8,3422.1,2.92212]
[1721241426958,2.4661,3422.8,3422.0,2.9222]
[1721241426959,2.4661,3422.8,3422.2,2.92206]
[1721241427656,0.1260479,3422.7,3422.2,2.92206]
[1721241431572,0.1260479,3422.7,3422.0,5.84439]
[1721241431777,0.1260479,3422.7,3422.0,2.92219]
[1721241431976,0.1260479,3422.7,3422.0,5.84439]
[1721241432298,0.1260479,3422.7,3422.1,1.046]
[1721241432711,0.1260479,3422.7,3422.1,3.96816]
[1721241433103,0.1260479,3422.7,3422.1,1.046]
[1721241433517,0.1260479,3422.7,3422.0,3.96826]
[1721241434027,0.1260479,3422.7,3421.8,3.96838]
[1721241434390,0.1260479,3422.7,3421.8,3.96837]
[1721241434894,0.1260479,3422.7,3421.8,6.89075]
[1721241435215,0.1260479,3422.7,3422.0,1.046]
[1721241440205,0.1260479,3422.7,3421.9,2.92234]
[1721241440412,0.1260479,3422.7,3422.0,1.046]
[1721241440613,0.1260479,3422.7,3422.1,2.92216]
[1721241441006,0.1260479,3422.7,3422.0,1.046]
[1721241441539,0.1260479,3422.7,3422.0,3.96826]
[1721241447359,0.1260479,3422.7,3422.0,1.046]
[1721241447643,0.1260479,3422.7,3421.8,3.96843]
[1721241447853,0.1260479,3422.7,3421.8,6.89082]
[1721241448031,0.1260479,3422.7,3421.9,2.92234]
[1721241448646,0.1260479,3422.7,3421.8,3.96843]
[1721241449464,1.046,3422.4,3421.4,5.92277]
[1721241449751,2.3237,3422.3,3421.4,6.96877]
[1721241449916,2.44646007,3422.3,3421.5,2.92266]
[1721241451431,3.05722042,3422.3,3421.5,2.92266]
[1721241451631,3.05722042,3422.3,3421.6,1.046]
[1721241452245,0.61076035,3422.2,3421.6,1.046]
[1721241452444,0.73351684,3422.2,3421.6,1.046]
[1721241453322,0.61076035,3422.1,3421.6,1.046]
[1721241453722,0.12275157,3422.0,3421.6,1.046]
[1721241454063,0.12275157,3422.0,3421.6,2.035138]
[1721241454356,0.12275157,3422.0,3421.8,1.046]
[1721241454750,2.93446035,3422.3,3421.8,1.046]
[1721241454938,0.12270198,3421.9,3421.8,1.046]
[1721241455138,2.93446035,3422.3,3421.8,1.046]
[1721241455344,2.93446035,3422.3,3421.6,1.046]
[1721241455345,0.12270198,3421.9,3421.6,1.046]
[1721241455550,0.61076035,3422.0,3421.3,1.046]
[1721241455750,0.1226943,3421.8,3421.3,1.046]
[1721241455964,0.0602852,3421.8,3421.3,1.046]
[1721241456174,0.12270639,3421.7,3421.3,1.046]
[1721241456670,0.12269661,3421.6,3421.5,1.046]
[1721241456874,0.0602852,3421.6,3421.5,1.046]
[1721241459576,0.18298114,3421.6,3421.5,1.046]
[1721241459773,0.0602852,3421.6,3421.5,1.046]
[1721241459976,0.18298114,3421.6,3421.5,1.60724718]
[1721241460181,0.0602852,3421.6,3421.5,1.60724718]
[1721241462851,0.0602852,3421.6,3421.5,4.52993718]
[1721241464361,0.0602852,3421.6,3421.5,6.85173718]
[1721241464687,0.0602852,3421.6,3421.5,4.52993718]
[1721241465181,0.0602852,3421.6,3421.5,3.96869]
[1721241465948,0.0602852,3421.6,3421.4,3.0]
[1721241466155,0.0602852,3421.6,3421.1,2.923]
[1721241466156,0.0602852,3421.6,3421.2,3.0]
[1721241466352,0.12269348,3421.5,3421.2,3.0]
[1721241467194,0.12269348,3421.5,3421.3,1.046]
[1721241467786,0.12269348,3421.5,3421.3,4.957996]
[1721241467965,0.12269348,3421.5,3421.4,3.0]
[1721241471592,0.12269348,3421.5,3421.4,5.92278]
[1721241476284,0.12269348,3421.5,3421.4,8.84556]
[1721241476504,0.12269348,3421.5,3421.4,9.39556]
[1721241476819,0.0602852,3421.6,3421.5,5.84538]
[1721241476955,0.0602852,3421.6,3421.5,7.44138]
[1721241477830,0.0602852,3421.6,3421.4,7.5969336]
[1721241477831,0.0602852,3421.6,3421.4,3.0]
[1721241477991,0.0602852,3421.6,3421.3,3.0]
[1721241478509,0.11629081,3421.5,3421.3,3.0]
[1721241478894,0.11629081,3421.5,3421.3,5.92279]
[1721241479623,0.11629081,3421.5,3420.8,2.92326]
[1721241479624,2.3092,3421.4,3420.8,2.92326]
[1721241479847,0.61330515,3421.1,3420.7,1.046]
[1721241479990,0.61330515,3421.1,3420.8,2.92326]
[1721241480188,0.11621719,3421.0,3420.9,1.046]
[1721241480801,0.72952234,3421.0,3420.9,1.046]
[1721241481125,0.11621719,3421.0,3420.9,3.9692]
[1721241481329,0.61330515,3421.2,3420.9,3.9692]
[1721241481572,0.11613359,3421.0,3420.9,3.9692]
[1721241481705,0.61330515,3421.2,3421.0,2.92304]
[1721241481902,0.61330515,3421.3,3421.1,1.046]
[1721241482216,0.0602852,3421.6,3421.1,1.046]
[1721241482217,0.61330515,3421.4,3421.1,1.046]
[1721241482386,0.61330515,3421.5,3421.3,1.046]
[1721241482797,0.61330515,3421.4,3421.3,1.046]
[1721241483024,0.61330515,3421.5,3421.3,1.046]
[1721241483415,0.61330515,3421.4,3421.3,1.046]
[1721241483616,0.61330515,3421.5,3421.3,1.046]
[1721241484293,0.61330515,3421.5,3421.2,2.92289]
[1721241484622,0.61330515,3421.5,3421.2,5.84576]
[1721241485001,0.61330515,3421.5,3421.3,2.92286]
[1721241485201,0.67359035,3421.6,3421.3,2.92286]
[1721241486610,0.61330515,3421.5,3421.3,2.92286]
[1721241486948,0.67359035,3421.6,3421.3,2.92286]
[1721241487155,0.61330515,3421.5,3421.3,2.92286]
[1721241487655,0.11612676,3421.4,3421.3,2.92286]
[1721241489449,0.11612676,3421.4,3421.1,5.30107]
[1721241489755,0.11612676,3421.4,3421.1,5.84594]
[1721241490222,0.11612676,3421.4,3421.1,2.92297]
[1721241490418,0.61330515,3421.5,3421.1,2.92297]
[1721241491324,0.61330515,3421.3,3420.7,0.30541707]
[1721241491640,0.61330515,3421.3,3420.8,3.47324]
[1721241492156,0.72559908,3421.2,3420.8,3.47324]
[1721241492511,0.11229393,3421.2,3420.8,3.47324]
[1721241492731,0.61330515,3421.3,3420.8,3.47324]
[1721241492976,0.11229377,3421.1,3420.8,3.47324]
[1721241493183,0.61330515,3421.2,3420.8,3.47324]
[1721241493397,0.11227793,3421.0,3420.9,2.92319]
[1721241493556,0.61330515,3421.2,3420.9,2.92319]
[1721241495498,0.11227978,3421.1,3420.9,2.92319]
[1721241495651,0.11227978,3421.1,3420.9,3.862806]
[1721241495854,0.11227978,3421.1,3421.0,11.18784]
[1721241496077,0.11227978,3421.1,3421.0,14.21589793]
[1721241496297,0.0602852,3421.6,3421.4,2.92271]
[1721241496506,0.0602852,3421.6,3421.5,2.92269]
[1721241496856,0.0602852,3421.6,3421.2,2.92291]
[1721241496857,0.0602852,3421.6,3421.3,2.92281]
[1721241497185,0.0602852,3421.6,3421.4,2.92277]
[1721241498098,0.0602852,3421.6,3421.2,2.92291]
[1721241498307,0.0602852,3421.6,3421.3,5.92284]
[1721241498474,0.0602852,3421.6,3421.4,2.92275]
[1721241499595,2.5273852,3421.6,3421.0,3.47309]
[1721241499756,0.61330515,3421.4,3421.0,2.92309]
[1721241499963,0.61330515,3421.4,3421.1,3.0]
[1721241500163,0.61330515,3421.3,3421.1,3.0]
[1721241500409,0.61330515,3421.4,3421.1,3.0]
[1721241500623,0.61330515,3421.3,3421.1,3.0]
[1721241500772,0.61330515,3421.2,3420.7,0.30546604]
[1721241500977,0.61330515,3421.0,3420.4,2.92362]
[1721241501201,0.61330515,3420.9,3420.4,2.92362]
[1721241501732,0.61330515,3420.9,3419.9,7.83814685]
[1721241501733,2.4807,3420.7,3419.9,3.38216685]
[1721241502029,2.4807,3420.7,3419.7,0.60824001]
[1721241502030,0.61330515,3420.4,3419.7,2.92418]
[1721241502227,0.61330515,3420.2,3419.7,2.92418]
[1721241502375,0.61330515,3420.3,3419.7,2.92418]
[1721241502578,0.10839074,3420.1,3419.7,2.92418]
[1721241502812,1.2215207,3420.6,3419.8,2.92414]
[1721241502813,0.61330515,3420.4,3419.8,2.92414]
[1721241503029,0.10832793,3420.0,3419.8,2.92414]
[1721241503189,0.61330515,3420.5,3419.8,2.92414]
[1721241503522,0.61330515,3420.6,3419.9,3.0]
[1721241503700,0.61330515,3420.5,3419.9,3.0]
[1721241504224,0.61330515,3420.6,3419.9,3.0]
[1721241504817,2.4807,3420.7,3419.9,5.92406]
[1721241504818,3.09400515,3420.7,3419.9,5.92406]
[1721241505196,3.09400515,3420.7,3420.0,0.05847436]
[1721241505393,2.4807,3420.7,3420.1,2.92387]
[1721241505588,2.4807,3420.7,3420.1,2.98233966]
[1721241506115,0.61330515,3420.9,3420.1,2.98233966]
[1721241506276,0.61330515,3420.9,3420.2,2.9238]
[1721241506673,0.61330515,3420.8,3420.3,2.9237]
[1721241506908,2.95800515,3421.1,3420.4,2.92355]
[1721241507111,0.61330515,3421.0,3420.4,2.92355]
[1721241507317,2.95800515,3421.1,3420.4,2.92355]
[1721241507517,0.61330515,3421.1,3420.4,2.92355]
[1721241507718,0.61330515,3421.2,3420.4,2.92355]
[1721241507927,0.61330515,3421.2,3420.5,2.92354]
[1721241508134,0.61330515,3421.2,3420.5,2.98200391]
[1721241508345,0.61330515,3421.3,3420.7,2.92331]
[1721241508633,0.67359035,3421.6,3421.0,2.92311]
[1721241509152,0.0602852,3421.6,3421.1,2.98147416]
[1721241509292,0.0602852,3421.6,3421.1,2.92302]
[1721241510603,0.0602852,3421.6,3421.1,2.98147415]
[1721241510937,0.0602852,3421.6,3421.2,2.92287]
[1721241512678,0.0602852,3421.6,3421.3,2.92285]
[1721241512961,0.10838357,3421.5,3421.2,2.92289]
[1721241513135,0.0602852,3421.6,3421.3,2.92284]
[1721241513339,0.0602852,3421.6,3421.4,2.92277]
[1721241513674,0.0602852,3421.6,3421.5,2.92269]
[1721241520509,0.0602852,3421.6,3421.5,5.84538]
[1721241520864,0.0602852,3421.6,3421.5,8.72628]
[1721241521063,0.0602852,3421.6,3421.5,17.16097]
[1721241521298,0.0602852,3421.6,3421.5,18.877067]
[1721241521770,0.0602852,3421.6,3421.5,21.799757]
[1721241521968,0.0602852,3421.6,3421.5,22.81549097]
[1721241522320,0.0602852,3421.6,3421.5,28.81818097]
[1721241522605,1e-08,3421.6,3421.5,29.42642098]
[1721241522818,1e-08,3421.6,3421.5,28.81818097]
[1721241523197,1e-08,3421.6,3421.5,29.42747306]
[1721241523813,0.61330515,3423.5,3422.9,2.92149]
[1721241524383,3.02950515,3423.6,3422.9,2.92149]
[1721241525310,2.4162,3423.6,3422.9,2.92149]
[1721241526610,2.4162,3423.6,3423.0,2.92139]
[1721241526988,0.91995773,3423.9,3423.1,3.505538]
[1721241526989,0.61330515,3423.9,3423.1,3.505538]
[1721241527186,0.61330515,3424.0,3423.2,2.97964889]
[1721241527421,0.61330515,3424.1,3423.2,2.97964889]
[1721241527590,0.61330515,3424.1,3423.2,2.92123]
[1721241527776,0.61330515,3424.0,3423.2,2.92123]
[1721241527977,0.61330515,3423.9,3423.2,2.92123]
[1721241529298,0.61330515,3424.0,3423.2,2.92123]
[1721241529506,0.61330515,3424.1,3423.2,2.92123]
[1721241529690,0.61330515,3424.2,3423.2,2.92123]
[1721241529889,0.61330515,3424.1,3423.2,2.92123]
[1721241530277,0.61330515,3424.2,3423.2,2.92123]
[1721241530683,0.61330515,3424.1,3423.2,2.92123]
[1721241530877,0.61330515,3424.1,3423.3,2.3051]
[1721241531090,0.61330515,3424.3,3423.3,2.92115]
[1721241531616,3.53352515,3424.4,3423.3,2.92115]
[1721241532194,0.61330515,3424.3,3423.3,2.92115]
[1721241532394,3.53352515,3424.4,3423.3,2.92115]
[1721241532590,0.09930276,3424.2,3423.3,2.92115]
[1721241532814,0.09930521,3424.3,3423.3,2.92115]